bitfinex-derivatives/quotes_ETHF0:USTF0_20250314
["timestamp","ask_amount","ask_price","bid_price","bid_amount"]
[1741980663011,2.0996,1938.3,1938.1,0.00773854]
[1741980663218,5.61726,1938.2,1938.1,0.00773854]
[1741980663409,2.40946,1938.2,1938.1,0.00773854]
[1741980663608,5.61726,1938.2,1938.1,0.00773854]
[1741980664620,2.40946,1938.2,1938.1,0.00773854]
[1741980664814,1.3776,1938.2,1938.1,1.03964854]
[1741980665718,2.40946,1938.2,1938.1,0.00773854]
[1741980665919,5.61726,1938.2,1938.1,1.03964854]
[1741980666118,2.40946,1938.2,1938.1,1.03964854]
[1741980666412,5.61726,1938.2,1938.1,1.03964854]
[1741980667121,2.40946,1938.2,1938.1,1.03964854]
[1741980667321,1.3776,1938.2,1938.1,1.03964854]
[1741980668013,6.27396,1938.2,1938.1,2.46344854]
[1741980668513,2.0343,1938.2,1938.1,2.46344854]
[1741980668715,3.06616,1938.2,1938.1,2.46344854]
[1741980669821,2.0343,1938.2,1938.1,2.46344854]
[1741980670119,6.27396,1938.2,1938.1,1.43153854]
[1741980670522,3.06616,1938.2,1938.1,0.00773854]
[1741980670724,6.27396,1938.2,1938.1,0.00773854]
[1741980671530,6.27396,1938.2,1938.1,1.39333854]
[1741980671828,3.06616,1938.2,1938.1,1.39333854]
[1741980672524,2.0343,1938.2,1938.1,2.42524854]
[1741980672823,3.06616,1938.2,1938.1,2.42524854]
[1741980674732,6.27396,1938.2,1938.1,0.00773854]
[1741980676133,1.03212,1937.8,1937.7,1.03212]
[1741980676335,1.03212,1937.8,1937.7,1.4095]
[1741980676735,1.03212,1937.8,1937.7,2.44163]
[1741980676935,3.03935,1937.9,1937.8,1.03207]
[1741980677141,1.70285,1937.9,1937.8,2.45157]
[1741980677347,3.2078,1938.0,1937.9,1.03202]
[1741980677535,4.23977,1938.0,1937.9,1.4195]
[1741980679342,1.03202,1937.9,1937.8,1.03204]
[1741980679548,1.03202,1937.9,1937.8,1.3788]
[1741980680342,4.23982,1937.9,1937.8,1.3788]
[1741980680947,1.03207,1937.8,1937.7,1.03207]
[1741980681243,1.03202,1938.0,1937.9,1.032]
[1741980681448,1.03207,1937.8,1937.7,2.41088]
[1741980681740,1.03207,1937.8,1937.7,2.41093]
[1741980682239,2.44637,1937.8,1937.7,2.41093]
[1741980683544,1.03207,1937.8,1937.7,2.41093]
[1741980684543,1.03201,1938.0,1937.8,1.03207]
[1741980684845,1.03201,1938.0,1937.9,2.0244]
[1741980687447,1.03201,1938.0,1937.9,3.05642]
[1741980687644,1.03201,1938.0,1937.9,2.0244]
[1741980688638,1.03201,1938.0,1937.9,3.05642]
[1741980690439,1.03201,1938.0,1937.9,2.34172]
[1741980690648,1.72301,1938.0,1937.9,2.34172]
[1741980691851,1.72301,1938.0,1937.9,1.3097]
[1741980692651,1.72301,1938.0,1937.9,1.03202]
[1741980692854,1.03202,1937.9,1937.8,1.4116]
[1741980693052,3.04972,1937.9,1937.8,2.44367]
[1741980693253,3.04972,1937.9,1937.8,1.4116]
[1741980693549,3.04972,1937.9,1937.8,2.44367]
[1741980693750,3.04972,1937.9,1937.8,1.4116]
[1741980694747,6.25752,1937.9,1937.8,1.4116]
[1741980695352,1.03213,1937.7,1937.6,1.74559854]
[1741980695544,1.03213,1937.7,1937.6,1.74558854]
[1741980695750,2.36329,1937.8,1937.7,1.03213]
[1741980696553,2.36329,1937.8,1937.7,2.46593]
[1741980697058,2.36329,1937.8,1937.7,1.4338]
[1741980702561,2.36329,1937.8,1937.7,2.46593]
[1741980702760,2.36329,1937.8,1937.7,1.4338]
[1741980702962,2.36329,1937.8,1937.7,2.46593]
[1741980703160,2.36329,1937.8,1937.7,1.4338]
[1741980703762,2.36329,1937.8,1937.7,2.46593]
[1741980705062,2.36329,1937.8,1937.7,1.4338]
[1741980705365,2.36329,1937.8,1937.7,2.46593]
[1741980709267,1.03213,1937.7,1937.6,0.00773854]
[1741980709467,3.12283,1937.7,1937.6,0.00773854]
[1741980709675,6.33063,1937.7,1937.6,0.00773854]
[1741980709973,3.12283,1937.7,1937.6,0.00773854]
[1741980710166,6.33063,1937.7,1937.6,0.00773854]
[1741980710669,3.12283,1937.7,1937.6,0.00773854]
[1741980711167,6.33063,1937.7,1937.6,0.00773854]
[1741980714272,3.12283,1937.7,1937.6,0.00773854]
[1741980714573,6.33063,1937.7,1937.6,0.00773854]
[1741980715372,3.12283,1937.7,1937.6,0.00773854]
[1741980716076,6.33063,1937.7,1937.6,0.00773854]
[1741980717077,3.12283,1937.7,1937.6,0.00773854]
[1741980717663,6.33063,1937.7,1937.6,0.00773854]
[1741980719081,3.12283,1937.7,1937.6,0.00773854]
[1741980719574,6.33063,1937.7,1937.6,0.00773854]
[1741980719970,3.12283,1937.7,1937.6,0.00773854]
[1741980720777,6.33063,1937.7,1937.6,0.00773854]
[1741980723079,3.12283,1937.7,1937.6,0.00773854]
[1741980723678,6.33063,1937.7,1937.6,0.00773854]
[1741980728681,6.33063,1937.7,1937.6,1.03991854]
[1741980728884,1.3831,1937.7,1937.6,1.03991854]
[1741980729071,1.3831,1937.7,1937.6,2.42241854]
[1741980729277,2.41523,1937.7,1937.6,2.42241854]
[1741980729784,2.41523,1937.7,1937.6,1.39023854]
[1741980730080,2.41523,1937.7,1937.6,2.42241854]
[1741980730284,2.41523,1937.7,1937.6,2.72403854]
[1741980731187,2.41523,1937.7,1937.6,3.75621854]
[1741980731582,1.03213,1937.7,1937.6,3.75621854]
[1741980732193,2.44123,1937.7,1937.6,2.72403854]
[1741980733388,2.44123,1937.7,1937.6,3.75621854]
[1741980735590,3.2078,1937.8,1937.7,1.03213]
[1741980735793,1.03207,1937.8,1937.7,2.42613]
[1741980735991,8.14283753,1938.1,1937.8,1.03203]
[1741980735992,0.85299055,1938.0,1937.8,1.03203]
[1741980736194,3.20146055,1938.0,1937.9,1.394]
[1741980736399,2.34847,1938.0,1937.9,3.13282]
[1741980736696,0.85299055,1938.1,1938.0,1.03197]
[1741980736994,0.85299055,1938.1,1938.0,3.09747]
[1741980737184,1.0319,1938.2,1938.1,1.03191]
[1741980737382,1.0319,1938.2,1938.1,2.48711]
[1741980737589,2.34834,1938.3,1938.1,2.48711]
[1741980737783,1.3165,1938.3,1938.2,2.48706]
[1741980737983,1.03181,1938.3,1938.2,1.4552]
[1741980738392,4.23961,1938.3,1938.0,0.6715]
[1741980738593,1.03197,1938.0,1937.9,0.7068]
[1741980738799,1.03206,1937.9,1937.7,1.03208]
[1741980738994,1.03206,1937.9,1937.8,1.03207]
[1741980739188,4.23981,1938.0,1937.8,1.03207]
[1741980739388,1.4065,1938.1,1937.7,1.3746]
[1741980739590,1.03203,1937.9,1937.8,1.03206]
[1741980739889,1.4065,1938.1,1937.8,1.03206]
[1741980739890,2.4599,1938.0,1937.9,1.03202]
[1741980740092,2.4599,1938.0,1937.8,2.48723]
[1741980740293,1.03202,1937.9,1937.8,2.48723]
[1741980740596,1.03202,1937.9,1937.7,2.40668]
[1741980741095,2.38007,1937.8,1937.7,2.40668]
[1741980741494,2.38007,1937.8,1937.7,0.6744]
[1741980741696,1.03213,1937.7,1937.6,0.00773854]
[1741980741891,3.71703,1937.7,1937.6,0.00773854]
[1741980742098,2.58057,1937.6,1937.0,1.03248]
[1741980742394,2.58057,1937.6,1936.9,1.69384]
[1741980742395,1.0325,1937.0,1936.9,1.69384]
[1741980742800,3.03661,1937.2,1936.9,0.6613]
[1741980743289,0.00773854,1937.2,1937.1,1.03245]
[1741980745393,1.03246,1937.1,1936.9,0.66903854]
[1741980745601,1.03246,1937.1,1936.9,1.70153854]
[1741980745804,1.4083,1937.1,1937.0,1.0325]
[1741980746307,0.00773854,1937.2,1937.1,1.03245]
[1741980750202,0.00773854,1937.2,1937.1,4.24025]
[1741980753211,1.3156,1937.5,1937.4,1.03229]
[1741980754001,0.6807,1937.7,1937.3,6.47074]
[1741980754208,4.124,1937.8,1937.7,1.03213]
[1741980754513,1.9976,1937.8,1937.7,1.03213]
[1741980754714,1.3156,1937.8,1937.7,1.03213]
[1741980755007,0.00773854,1937.9,1937.7,1.03213]
[1741980755008,0.00773854,1937.9,1937.8,1.03207]
[1741980755214,2.35535854,1937.9,1937.8,1.03207]
[1741980755414,2.35535854,1937.9,1937.7,1.71419]
[1741980755616,1.3249,1937.8,1937.7,1.71419]
[1741980755809,1.03975854,1937.9,1937.8,1.03207]
[1741980755810,0.00773854,1937.9,1937.8,1.03207]
[1741980756622,0.682,1938.3,1938.2,1.03186]
[1741980756809,0.682,1938.3,1938.1,1.03189]
[1741980756810,1.03186,1938.2,1938.1,1.03189]
[1741980757005,1.71384,1938.3,1938.1,1.03189]
[1741980757211,0.682,1938.3,1938.2,1.03186]
[1741980757413,0.6618,1938.4,1938.3,1.03181]
[1741980757616,0.6615,1938.5,1938.4,1.03175]
[1741980757817,3.2078,1938.6,1938.5,1.0317]
[1741980758018,1.3233,1938.8,1938.7,1.03159]
[1741980758613,0.6615,1938.8,1938.7,1.03159]
[1741980759114,0.00773854,1938.9,1938.8,1.03154]
[1741980770827,0.00773854,1938.9,1938.8,4.23934]
[1741980771727,0.00773854,1938.9,1938.8,1.03154]
[1741980772327,0.00773854,1938.9,1938.5,3.439]
[1741980772525,1.03156,1938.8,1938.7,1.03158]
[1741980772720,1.03156,1938.8,1938.6,2.35582]
[1741980772931,2.0638,1938.7,1938.6,2.35581]
[1741980773831,2.7892,1938.7,1938.1,6.02550854]
[1741980774135,7.44293,1938.6,1938.1,1.03963854]
[1741980774433,1.03186,1938.2,1938.1,1.03963854]
[1741980774826,2.8384,1938.2,1938.1,1.03964854]
[1741980775027,9.1818,1938.5,1938.1,0.00773854]
[1741980775028,5.974,1938.5,1938.1,0.00773854]
[1741980775228,1.03181,1938.3,1938.2,1.03183]
[1741980775423,1.03181,1938.3,1938.1,1.03960854]
[1741980775637,1.4258,1938.2,1938.1,2.42900854]
[1741980777638,1.03181,1938.3,1938.1,1.39713854]
[1741980777944,4.2396,1938.4,1938.2,2.35424]
[1741980778433,3.2078,1938.4,1938.3,1.03181]
[1741980778940,1.3691,1938.4,1938.3,1.03181]
[1741980779334,1.3691,1938.4,1938.3,2.35421]
[1741980779839,0.6925,1938.5,1938.4,1.03175]
[1741980780048,0.6925,1938.5,1938.4,2.43385]
[1741980780935,5.98173854,1938.9,1938.4,8.0489]
[1741980781142,1.40723854,1938.9,1938.8,1.03154]
[1741980781445,0.00773854,1938.9,1938.8,1.03154]
[1741980781841,1.03922854,1938.9,1938.8,1.03154]
[1741980782142,0.00773854,1938.9,1938.8,1.03154]
[1741980782643,0.00773854,1938.9,1938.7,1.03155]
[1741980782945,1.03925854,1938.9,1938.7,1.4021]
[1741980784244,0.00773854,1938.9,1938.8,1.03154]
[1741980785139,0.00773854,1938.9,1938.8,1.75034]
[1741980787139,0.00773854,1938.9,1938.8,3.07104]
[1741980789244,0.00773854,1938.9,1938.8,3.48076691]
[1741980789547,0.00773854,1938.9,1938.8,3.07104]
[1741980791746,1.03922854,1938.9,1938.7,7.67635]
[1741980791945,0.7191,1938.8,1938.7,7.67635]
[1741980792246,1.03159,1938.7,1938.6,1.03161]
[1741980792542,0.697,1938.7,1938.6,1.03161]
[1741980793145,0.697,1938.7,1938.6,2.43051]
[1741980793744,1.72859,1938.7,1938.6,1.03161]
[1741980794242,0.697,1938.7,1938.6,1.03161]
[1741980798148,2.0421,1938.7,1938.6,1.03161]
[1741980799341,1.3451,1938.7,1938.6,1.03161]
[1741980800048,1.3451,1938.7,1938.6,2.36341]
[1741980805254,0.00773854,1938.9,1938.8,1.03154]
[1741980805557,1.03922854,1938.9,1938.8,1.03154]
[1741980805851,2.43922854,1938.9,1938.8,1.03154]
[1741980806654,1.40773854,1938.9,1938.8,1.03154]
[1741980807950,2.43922854,1938.9,1938.8,1.03154]
[1741980809847,1.40773854,1938.9,1938.8,1.03154]
[1741980810654,1.40773854,1938.9,1938.8,2.46484]
[1741980813257,0.00773854,1938.9,1938.8,3.13724]
[1741980815155,0.00773854,1938.9,1938.8,1.4333]
[1741980815457,1.03922854,1938.9,1938.8,1.4333]
[1741980816661,2.35252854,1938.9,1938.8,1.4333]
[1741980816855,2.35252854,1938.9,1938.8,2.46484]
[1741980817755,1.03154,1938.8,1938.7,1.3958]
[1741980817950,1.03154,1938.8,1938.7,1.03159]
[1741980817951,2.34484,1938.8,1938.7,1.03159]
[1741980818147,1.3133,1938.8,1938.7,1.03159]
[1741980818348,3.01004,1938.8,1938.7,1.03159]
[1741980819056,1.9785,1938.8,1938.4,1.03171]
[1741980819257,1.03169,1938.6,1938.5,1.3958]
[1741980819457,1.03175,1938.4,1938.3,1.03175]
[1741980819663,1.03175,1938.4,1938.3,2.42605]
[1741980819962,1.4014,1938.5,1938.3,1.3943]
[1741980819963,2.43314,1938.5,1938.3,1.3943]
[1741980820257,2.43314,1938.5,1938.4,1.3943]
[1741980820457,2.43314,1938.5,1938.4,2.42605]
[1741980821564,1.4014,1938.5,1938.4,2.42605]
[1741980822064,2.4331,1938.5,1938.4,2.42605]
[1741980823765,2.4331,1938.5,1938.4,1.3943]
[1741980824863,2.4331,1938.5,1938.4,2.42605]
[1741980827067,1.4014,1938.5,1938.1,0.00773854]
[1741980827268,1.03185,1938.3,1938.2,1.03184]
[1741980827464,1.03186,1938.2,1938.1,2.48190854]
[1741980827660,1.4274,1938.2,1938.1,2.48190854]
[1741980829168,2.45926,1938.2,1938.1,2.48190854]
[1741980829359,1.4274,1938.2,1938.1,2.48190854]
[1741980829558,2.45926,1938.2,1938.1,2.48190854]
[1741980831361,3.14756,1938.2,1938.1,2.48190854]
[1741980832467,3.14756,1938.2,1938.1,0.00773854]
[1741980833669,14.0257,1938.2,1937.4,3.2078]
[1741980833971,3.2078,1938.0,1937.5,1.4348]
[1741980834164,1.03216,1937.7,1937.6,1.03216]
[1741980835263,2.36766,1937.7,1937.6,1.03216]
[1741980836166,2.36766,1937.7,1937.5,1.44253854]
[1741980836167,1.03218,1937.6,1937.5,1.44253854]
[1741980836470,3.07898,1937.6,1937.5,1.44253854]
[1741980836861,3.07898,1937.6,1937.5,0.00773854]
[1741980837265,3.07898,1937.6,1937.5,1.37043854]
[1741980838563,3.07898,1937.6,1937.5,0.00773854]
[1741980839572,3.07898,1937.6,1937.5,1.44033854]
[1741980839974,3.07898,1937.6,1937.5,0.00773854]
[1741980840967,6.28678,1937.6,1937.5,0.00773854]
[1741980841169,2.5806,1937.5,1937.0,6.0112]
[1741980841373,1.03239,1937.2,1937.1,1.4146]
[1741980841675,4.24019,1937.2,1937.1,1.4146]
[1741980842268,5.63429,1937.2,1937.1,1.4146]
[1741980842472,2.42649,1937.2,1937.1,2.44705]
[1741980842675,2.42649,1937.2,1937.1,1.4146]
[1741980848274,9.9122,1937.2,1936.4,5.78973]
[1741980848484,4.24035,1936.9,1936.8,1.3505]
[1741980848875,1.03255,1936.9,1936.8,1.3505]
[1741980849380,2.48645,1936.9,1936.8,1.3505]
[1741980850674,5.69425,1936.9,1936.8,1.3505]
[1741980850880,1.03261,1936.8,1936.7,0.00773854]
[1741980851078,2.48781,1936.8,1936.7,0.00773854]
[1741980851983,2.48781,1936.8,1936.7,1.39643854]
[1741980852482,2.48781,1936.8,1936.7,2.42909854]
[1741980852684,1.4552,1936.9,1936.8,1.03261]
[1741980852878,1.4552,1936.9,1936.8,3.77411]
[1741980853083,4.24027,1937.1,1937.0,1.0325]
[1741980853976,1.0325,1937.0,1936.9,1.3815]
[1741980854181,2.3714,1937.0,1936.9,1.3815]
[1741980856883,2.3714,1937.0,1936.9,2.41405]
[1741980857185,2.3714,1937.0,1936.9,1.3815]
[1741980857370,1.3389,1937.0,1936.9,2.41405]
[1741980857576,3.2078,1937.3,1936.9,3.96286]
[1741980857777,3.2078,1937.3,1937.2,1.03239]
[1741980858683,1.75455,1937.7,1937.6,1.03218]
[1741980858984,3.08015,1937.7,1937.6,1.03218]
[1741980859188,3.08015,1937.7,1937.5,1.03219]
[1741980859376,3.08015,1937.7,1937.6,1.4373]
[1741980859885,1.03233,1937.4,1937.2,1.74246]
[1741980860082,1.03233,1937.4,1937.3,1.4373]
[1741980860083,1.03229,1937.4,1937.3,1.4373]
[1741980860481,0.7082,1937.4,1937.1,1.03239]
[1741980860686,3.2078,1937.3,1936.9,7.03054]
[1741980860877,1.0325,1937.0,1936.9,8.46784]
[1741980861078,1.03249,1937.1,1937.0,1.0325]
[1741980863582,6.6448,1937.3,1936.9,1.4373]
[1741980863784,1.03246,1937.1,1937.0,1.03246]
[1741980868791,1.03246,1937.1,1937.0,1.74506]
[1741980868991,1.03246,1937.1,1937.0,0.7126]
[1741980869390,1.03246,1937.1,1937.0,2.0381]
[1741980869797,1.03246,1937.1,1937.0,3.0706]
[1741980870691,1.03246,1937.1,1937.0,2.0381]
[1741980870888,1.03246,1937.1,1937.0,1.3255]
[1741980871095,10.21404,1937.5,1937.0,10.32707]
[1741980871297,4.24003,1937.5,1937.4,1.03229]
[1741980871488,4.5859,1937.7,1937.3,3.2078]
[1741980871688,1.03221,1937.6,1937.5,1.03221]
[1741980871996,4.5859,1937.7,1937.4,2.34495]
[1741980871997,1.03223,1937.5,1937.4,2.34495]
[1741980872392,1.03223,1937.5,1937.4,1.3127]
[1741980873202,1.03239,1937.3,1937.2,1.03237]
[1741980873496,1.03239,1937.3,1937.2,2.34507]
[1741980874699,1.70582,1937.4,1937.3,1.03234]
[1741980874899,1.70579,1937.4,1937.3,2.40844]
[1741980875092,1.70579,1937.4,1937.3,1.3761]
[1741980875292,1.70579,1937.4,1937.3,2.40844]
[1741980876697,1.70579,1937.4,1937.3,1.3761]
[1741980877099,1.70579,1937.4,1937.3,2.40844]
[1741980877312,1.70579,1937.4,1937.3,1.3761]
[1741980877503,1.03239,1937.2,1937.1,1.74042]
[1741980877708,1.73638,1937.3,1937.2,1.03239]
[1741980878707,3.15398,1937.3,1937.2,2.34459]
[1741980878914,3.15398,1937.3,1937.2,1.3122]
[1741980879412,3.15398,1937.3,1937.2,2.34459]
[1741980880314,2.1216,1937.3,1937.2,2.34459]
[1741980880518,2.1216,1937.3,1937.2,3.01499]
[1741980881412,3.15394,1937.3,1937.2,1.3122]
[1741980881619,1.03239,1937.2,1937.0,4.24025]
[1741980881921,2.38209,1937.2,1937.1,1.3671]
[1741980882115,2.38209,1937.2,1937.1,2.39955]
[1741980882526,1.3497,1937.2,1937.1,2.39955]
[1741980882822,2.38209,1937.2,1937.1,2.39955]
[1741980883718,2.38209,1937.2,1937.1,1.3671]
[1741980883916,1.3497,1937.2,1937.1,2.39955]
[1741980885716,1.03245,1937.1,1937.0,4.24027]
[1741980885924,1.03245,1937.1,1937.0,2.34997]
[1741980886115,1.68885,1937.1,1937.0,2.34997]
[1741980886312,0.6564,1937.1,1937.0,2.34997]
[1741980886516,0.6564,1937.1,1936.9,1.03251]
[1741980886517,1.0325,1937.0,1936.9,1.03251]
[1741980886816,1.0325,1937.0,1936.9,1.3447]
[1741980886817,2.4573,1937.0,1936.9,1.3447]
[1741980887419,1.4248,1937.0,1936.9,2.37725]
[1741980887724,0.704,1937.3,1936.9,1.3447]
[1741980887927,1.4248,1937.2,1937.1,1.03245]
[1741980888117,1.3843,1937.3,1937.2,1.03239]
[1741980888319,2.8091,1937.3,1937.2,1.03239]
[1741980888625,3.84144,1937.3,1937.2,1.03239]
[1741980888824,2.8091,1937.3,1937.2,1.03239]
[1741980889021,4.24,1937.6,1937.5,1.03223]
[1741980889327,1.03225,1937.5,1937.4,1.03224]
[1741980889521,1.03229,1937.4,1937.0,7.3093]
[1741980889723,1.03229,1937.4,1937.3,1.03234]
[1741980890025,1.03235,1937.3,1937.1,1.7449]
[1741980890217,2.37835,1937.3,1937.2,1.3571]
[1741980891025,2.37835,1937.3,1937.2,2.38949]
[1741980891413,2.37835,1937.3,1937.2,1.3571]
[1741980891824,2.37835,1937.3,1937.2,2.38949]
[1741980893624,1.346,1937.3,1937.2,2.38949]
[1741980894424,2.37834,1937.3,1937.2,2.38949]
[1741980894728,1.346,1937.3,1937.2,2.38949]
[1741980898022,1.03224,1937.5,1937.2,5.59729]
[1741980898226,1.55238716,1937.7,1937.6,1.03218]
[1741980898428,0.00773854,1937.8,1937.7,1.03213]
[1741980898621,5.974,1938.6,1937.7,0.6715]
[1741980898622,4.69867159,1938.5,1937.7,0.6715]
[1741980898925,1.71315,1938.6,1938.5,1.0317]
[1741980899120,0.6815,1938.6,1938.3,3.435]
[1741980899321,1.03175,1938.4,1938.3,1.3281]
[1741980899724,1.4382,1938.4,1938.3,2.35991]
[1741980900518,2.46995,1938.4,1938.3,1.3281]
[1741980900721,2.46995,1938.4,1938.3,2.35991]
[1741980900917,2.46995,1938.4,1938.3,1.3281]
[1741980901117,1.03181,1938.3,1938.2,0.00773854]
[1741980901323,5.67781,1938.3,1938.2,0.00773854]
[1741980901531,1.03194,1938.1,1937.9,1.03199]
[1741980901718,0.6672,1938.0,1937.9,2.46529]
[1741980901920,2.0742,1938.0,1937.9,2.46529]
[1741980902229,9.18953854,1938.5,1937.9,4.67382]
[1741980902527,9.18953854,1938.5,1938.2,1.03182]
[1741980902528,1.407,1938.3,1938.2,1.03182]
[1741980903123,1.407,1938.3,1938.2,1.69232]
[1741980905141,0.00773854,1938.5,1938.4,1.03175]
[1741980905330,0.00773854,1938.5,1938.2,3.8683]
[1741980905331,1.03946854,1938.5,1938.3,1.4054]
[1741980905636,1.03175,1938.4,1938.3,1.4054]
[1741980905839,1.03184,1938.3,1938.1,1.03187]
[1741980906134,0.00773854,1938.5,1938.1,1.03187]
[1741980906135,1.3688,1938.2,1938.1,1.03187]
[1741980906332,2.40069,1938.2,1938.0,4.14633854]
[1741980906634,2.40066,1938.2,1938.1,1.4054]
[1741980906846,1.3688,1938.2,1938.1,2.43731]
[1741980907834,2.6947,1938.2,1938.1,2.43731]
[1741980908335,3.21553854,1938.5,1938.3,1.03178]
[1741980908521,3.21553854,1938.5,1938.1,1.4054]
[1741980908522,2.38268,1938.4,1938.2,1.68722]
[1741980908727,1.3509,1938.3,1938.2,1.68722]
[1741980910435,2.42275854,1938.5,1938.2,0.6554]
[1741980910623,1.39103854,1938.5,1938.4,1.03175]
[1741980911028,2.42273854,1938.5,1938.4,1.03175]
[1741980911229,2.42273854,1938.5,1938.3,1.03177]
[1741980911430,1.3435,1938.4,1938.3,1.03177]
[1741980912432,2.37525,1938.4,1938.3,1.03177]
[1741980912634,3.92289,1938.4,1938.0,1.03967854]
[1741980912835,1.03191,1938.1,1938.0,1.03967854]
[1741980913035,1.0319,1938.2,1938.1,1.03191]
[1741980913235,1.71,1938.2,1938.1,1.03191]
[1741980913632,3.0535,1938.2,1938.1,1.03191]
[1741980914040,3.2078,1938.3,1938.2,1.03186]
[1741980914342,2.0674,1938.4,1938.0,0.00773854]
[1741980914540,2.4112,1938.2,1938.0,1.03967854]
[1741980914736,1.3793,1938.1,1938.0,1.03967854]
[1741980914943,2.0674,1938.1,1938.0,1.03967854]
[1741980915241,3.09931,1938.1,1938.0,1.03967854]
[1741980915635,3.09931,1938.1,1938.0,0.00773854]
[1741980915829,6.30711,1938.1,1938.0,0.00773854]
[1741980918842,1.3793,1938.1,1938.0,1.03970854]
[1741980919037,3.2078,1938.3,1938.2,1.03186]
[1741980919343,3.2078,1938.3,1938.1,2.35519]
[1741980919545,4.23963,1938.3,1938.2,1.03186]
[1741980919747,1.03183,1938.3,1938.2,1.03186]
[1741980920438,1.3954,1938.3,1938.1,2.35518]
[1741980920844,2.42725,1938.3,1938.2,1.03186]
[1741980922046,1.03186,1938.2,1938.1,1.03189]
[1741980922242,2.42726,1938.2,1938.1,1.03189]
[1741980922442,1.03191,1938.1,1938.0,0.00773854]
[1741980922638,3.82761,1938.1,1938.0,1.03970854]
[1741980922939,3.82761,1938.1,1938.0,0.00773854]
[1741980923146,7.03541,1938.1,1938.0,0.00773854]
[1741980923442,3.82761,1938.1,1938.0,0.00773854]
[1741980924645,7.03541,1938.1,1938.0,0.00773854]
[1741980924838,3.82761,1938.1,1938.0,0.00773854]
[1741980925441,3.82761,1938.1,1938.0,1.03970854]
[1741980925747,3.82761,1938.1,1938.0,0.00773854]
[1741980926244,3.82761,1938.1,1938.0,1.03970854]
[1741980926447,2.7957,1938.1,1938.0,1.03970854]
[1741980926640,1.3954,1938.1,1938.0,1.03970854]
[1741980926837,2.42731,1938.1,1938.0,1.03970854]
[1741980927044,1.3954,1938.1,1938.0,1.03970854]
[1741980927243,1.03184,1938.3,1938.0,3.21553854]
[1741980927438,3.21553854,1938.5,1938.1,3.25803]
[1741980927644,4.66063854,1938.5,1938.4,1.03175]
[1741980927948,1.45283854,1938.5,1938.4,1.03175]
[1741980928352,0.00773854,1938.5,1938.4,1.03175]
[1741980928542,0.00773854,1938.5,1938.4,3.02135]
[1741980932548,0.00773854,1938.5,1938.4,6.22915]
[1741980934545,0.00773854,1938.5,1938.4,3.02135]
[1741980934745,1.32743854,1938.5,1938.4,3.02135]
[1741980934946,1.32743854,1938.5,1938.4,2.34305]
[1741980935451,2.35913854,1938.5,1938.4,2.34305]
[1741980935646,2.35913854,1938.5,1938.4,1.3113]
[1741980936052,1.32743854,1938.5,1938.4,2.34305]
[1741980936853,2.35913854,1938.5,1938.4,2.34305]
[1741980937046,1.32743854,1938.5,1938.4,2.34305]
[1741980937247,2.35913854,1938.5,1938.4,2.34305]
[1741980937448,1.32743854,1938.5,1938.4,1.3113]
[1741980937649,2.35913854,1938.5,1938.4,2.34305]
[1741980940452,1.32743854,1938.5,1938.4,2.34305]
[1741980941154,0.00773854,1938.5,1938.4,2.34305]
[1741980941451,0.00773854,1938.5,1938.4,5.55085]
[1741980941659,1.3223,1938.7,1938.6,1.03165]
[1741980942049,2.35392,1938.7,1938.5,3.06646]
[1741980942247,2.35392,1938.7,1938.6,1.3118]
[1741980942456,5.56172,1938.7,1938.6,2.34345]
[1741980942656,5.56172,1938.7,1938.6,1.3118]
[1741980942847,2.35392,1938.7,1938.6,1.3118]
[1741980943246,5.56172,1938.7,1938.6,1.3118]
[1741980943451,2.35392,1938.7,1938.6,2.34345]
[1741980943654,2.35392,1938.7,1938.6,1.3118]
[1741980943852,9.60911,1938.7,1938.2,3.2078]
[1741980944057,1.03181,1938.3,1938.2,5.55143]
[1741980944858,1.03191,1938.1,1938.0,0.00773854]
[1741980945049,3.2078,1938.3,1938.0,0.00773854]
[1741980945250,4.5947,1938.5,1938.4,1.03175]
[1741980945454,1.03164,1938.7,1938.6,1.03165]
[1741980945761,1.03164,1938.7,1938.5,1.03166]
[1741980945762,2.37484,1938.7,1938.5,1.03166]
[1741980945962,1.03165,1938.6,1938.5,1.03166]
[1741980946255,0.00773854,1938.8,1938.7,1.03159]
[1741980946456,3.21553854,1938.8,1938.6,1.03161]
[1741980946655,1.03159,1938.7,1938.6,1.03161]
[1741980947051,4.24711854,1938.8,1938.6,1.03161]
[1741980947364,4.24711854,1938.8,1938.7,1.03159]
[1741980947660,4.24707854,1938.8,1938.7,1.03159]
[1741980947967,0.00773854,1938.8,1938.7,1.03159]
[1741980948261,0.00773854,1938.8,1938.7,4.46359]
[1741980948464,4.5918,1939.2,1938.7,4.46359]
[1741980948667,1.3315,1939.1,1939.0,1.03143]
[1741980949557,1.3315,1939.1,1939.0,2.34413]
[1741980952164,2.36288,1939.1,1939.0,2.34413]
[1741980952560,2.36288,1939.1,1939.0,1.3127]
[1741980952861,4.5393,1939.1,1938.9,1.03147]
[1741980953059,2.42310854,1939.2,1939.0,2.41633]
[1741980953257,2.42310854,1939.2,1938.7,4.8263]
[1741980953258,1.39173854,1939.2,1938.7,4.8263]
[1741980953453,1.03143,1939.0,1938.9,1.03147]
[1741980953761,1.03143,1939.0,1938.9,1.03149]
[1741980954563,1.39173854,1939.2,1939.0,1.03143]
[1741980954761,1.0314,1939.1,1938.8,1.3713]
[1741980955465,1.0314,1939.1,1939.0,1.03143]
[1741980955961,1.39173854,1939.2,1938.9,2.57872]
[1741980956166,1.39173854,1939.2,1939.1,1.03138]
[1741980956664,3.2078,1939.5,1939.4,1.03122]
[1741980958767,4.23897,1939.5,1939.4,1.03122]
[1741980958967,3.2078,1939.5,1939.4,2.36252]